[Event "ESTCC U50 2018"]
[Site "Walbrzych"]
[Date "2018.04.19"]
[Round "6"]
[White "Sirotkina, Nina"]
[Black "Strzelecki, Jerzy"]
[Result "1/2-1/2"]
[ECO "A13"]
[WhiteElo "2175"]
[BlackElo "2038"]
[Annotator "NA"]
[PlyCount "91"]
[EventDate "2018.??.??"]
[EventCountry "POL"]
[SourceTitle "playchess.com"]
[Source "ChessBase"]
[SourceQuality "1"]
[WhiteTeam "Russia"]
[BlackTeam "Poland"]
[WhiteTeamCountry "RUS"]
[BlackTeamCountry "POL"]
[TimeControl "40/5400+30:1800+30"]

1. c4 {[%emt 0:00:00]} e6 {[%emt 0:01:53]} 2. g3 {[%emt 0:01:40]} d5 {[%emt 0:00:35]} 3. Bg2 {[%emt 0:00:31]} dxc4 {[%emt 0:02:51]} 4. Qa4+ {[%emt 0:02:58]} Nd7 {[%emt 0:00:13]} 5. Qxc4 {[%emt 0:05:04]} c5 {[%emt 0:00:11]} 6. Nf3 {[%emt 0:02:48]} Ngf6 {[%emt 0:00:31]} 7. O-O {[%emt 0:01:27]} a6 {[%emt 0:00:10]} 8. Qc2 {[%emt 0:03:16]} b5 {[%emt 0:07:36] A13: English Opening: 1...e6} 9. Ne5 {[%emt 0:13:34]} (9. a4 Bb7 10. Nc3 Qb6 11. d3 Be7 12. axb5 axb5 13. Rxa8+ Bxa8 14. Qb3 Nd5 15. Bg5 Nxc3 16. Qxc3 f6 17. Bd2 O-O 18. Ra1 Bb7 19. Ne1 Bxg2 20. Nxg2 {1-0 (53) Aronian,L (2797)-Wojtaszek,R (2744) Beijing 2014}) 9... Nd5 {[%emt 0:00:39]} 10. Nxd7 {[%emt 0:06:47]} Bxd7 {[%emt 0:01:37]} ({Predecessor:} 10... Qxd7 11. Nc3 Bb7 12. Nxd5 Bxd5 13. a4 Bxg2 14. Kxg2 Rc8 15. axb5 axb5 16. d3 {0-1 (45) Gogolev,A (2379)-Aleksandrov,A (2560) Orsha 2018}) 11. Nc3 {[%emt 0:08:00]} Bc6 {[%emt 0:06:34]} 12. b3 {[%emt 0:09:43]} Be7 {[%emt 0:02:54]} 13. Bb2 {[%emt 0:02:21]} O-O {[%emt 0:00:15]} 14. Rad1 {[%emt 0:05:08]} Rc8 {[%emt 0:03:14]} 15. Qb1 {[%emt 0:01:54]} Nxc3 {[%emt 0:14:03]} 16. dxc3 {[%emt 0:05:44]} Qc7 {[%emt 0:00:17]} 17. Bxc6 {[%emt 0:11:14]} Qxc6 {[%emt 0:00:21]} 18. c4 {[%emt 0:00:34]} Rfd8 {[%emt 0:00:25]} 19. Qc2 {[%emt 0:00:57]} f5 {[%emt 0:10:51]} 20. Be5 {[%emt 0:01:14]} Kf7 {[%emt 0:02:34]} 21. Qc3 {[%emt 0:01:18]} b4 {[%emt 0:01:54]} 22. Qb2 {[%emt 0:00:22]} Bf8 {[%emt 0:00:22]} 23. f3 {[%emt 0:01:38]} Kg8 {[%emt 0:00:36]} 24. Qc2 {[%emt 0:01:31]} Be7 {[%emt 0:01:13]} 25. Qb2 {[%emt 0:01:14]} Bf8 {[%emt 0:00:52]} 26. Qc1 {[%emt 0:00:50]} Be7 {[%emt 0:01:42]} 27. Kg2 {[%emt 0:01:12]} h6 {[%emt 0:02:20]} 28. Qb2 {[%emt 0:00:38]} Bf8 {[%emt 0:00:10]} 29. Rd2 {[%emt 0:02:07]} Rd7 {[%emt 0:00:29]} 30. Rfd1 {[%emt 0:00:43]} Rcd8 {[%emt 0:00:30]} 31. Qc2 {[%emt 0:01:42]} Kf7 {[%emt 0:02:31]} 32. Rxd7+ {[%emt 0:01:29]} Rxd7 {[%emt 0:00:09]} 33. Rd3 {[%emt 0:00:27]} Be7 {[%emt 0:04:16]} 34. Qd2 {[%emt 0:01:19]} Rxd3 {[%emt 0:00:17]} 35. Qxd3 {[%emt 0:00:06]} Kg8 {[%emt 0:12:22]} 36. Kf2 {[%emt 0:01:09]} Kf7 {[%emt 0:00:22]} 37. Qd1 {[%emt 0:01:34]} Kg8 {[%emt 0:00:33]} 38. Qd3 {[%emt 0:00:50]} Kf7 {[%emt 0:00:10]} 39. Kg2 $11 {[%emt 0:01:12]} Kg8 {[%emt 0:00:16]} 40. h3 {[%emt 0:00:00]} h5 {[%emt 0:02:20]} 41. Qd2 {[%emt 0:08:44]} Kh7 {[%emt 0:01:52]} 42. Qd3 {[%emt 0:03:27]} Kg8 {[%emt 0:00:12]} 43. Qd2 {[%emt 0:06:07]} Kh7 {[%emt 0:00:34]} 44. Qd3 {[%emt 0:00:57]} Kg8 {[%emt 0:00:10]} 45. Qd2 {[%emt 0:00:12]} Kh7 {[%emt 0:00:06]} 46. Qd3 {[%emt 0:00:06]} 1/2-1/2

[Event "ESTCC U50 2018"]
[Site "Walbrzych"]
[Date "2018.04.19"]
[Round "6"]
[White "Viljava, Tapani"]
[Black "Scowen, Roger S"]
[Result "1-0"]
[ECO "A15"]
[WhiteElo "2162"]
[BlackElo "1882"]
[Annotator "NA"]
[PlyCount "59"]
[EventDate "2018.??.??"]
[EventCountry "POL"]
[SourceTitle "playchess.com"]
[Source "ChessBase"]
[SourceQuality "1"]
[WhiteTeam "Finland"]
[BlackTeam "England"]
[WhiteTeamCountry "FIN"]
[BlackTeamCountry "ENG"]
[TimeControl "40/5400+30:1800+30"]

1. c4 Nf6 2. Nf3 d5 3. cxd5 Nxd5 4. d4 g6 5. e4 {LiveBook: 104 Games} Nf6 6. Nc3 Bg7 7. h3 c6 {D90: Grünfeld: 4 Nf3 Bg7 sidelines} (7... O-O 8. Be3 a6 9. Bd3 c5 10. dxc5 Nbd7 11. O-O Qc7 12. Na4 Nh5 13. Qc1 Ne5 14. Be2 Nxf3+ 15. Bxf3 {1-0 (28) Kozul,Z (2632)-Shabanaj,S (2121) Durres 2014}) 8. Qb3 $146 ({Predecessor:} 8. Bd3 O-O 9. O-O a5 10. Bg5 Re8 11. Qd2 a4 12. Rfe1 Be6 13. Bh6 Bh8 14. Bc2 {1-0 (83) Pohl Kuemmel,J (2232)-Blaskowski,J (2270) Germany 2010}) 8... O-O 9. Be3 b6 10. Rd1 Bb7 11. Be2 e6 12. O-O Nbd7 13. Qc2 Qc7 14. Qd2 c5 15. Bf4 Qc8 16. d5 exd5 17. exd5 Re8 18. Nb5 Nxd5 19. Nd6 Rxe2 20. Qxe2 Nxf4 21. Qd2 Bh6 22. Nxc8 Nxh3+ 23. gxh3 Bxd2 24. Ne7+ Kf8 25. Rxd2 Nf6 26. Ne5 Kxe7 27. Re1 Kf8 28. Rd6 Kg7 29. Nd7 Rd8 $18 (29... Ne4 $11 {and Black is okay.} 30. Rd3 c4) 30. Nxf6 1-0

[Event "ESTCC U50 2018"]
[Site "Walbrzych"]
[Date "2018.04.19"]
[Round "6"]
[White "Bowmer, Kevin"]
[Black "Kivimaki, Jaakko"]
[Result "0-1"]
[ECO "C60"]
[WhiteElo "2064"]
[BlackElo "2181"]
[Annotator "NA"]
[PlyCount "68"]
[EventDate "2018.??.??"]
[EventCountry "POL"]
[SourceTitle "playchess.com"]
[Source "ChessBase"]
[SourceQuality "1"]
[WhiteTeam "England"]
[BlackTeam "Finland"]
[WhiteTeamCountry "ENG"]
[BlackTeamCountry "FIN"]
[TimeControl "40/5400+30:1800+30"]

1. e4 {[%emt 0:00:00]} e5 {[%emt 0:00:02]} 2. Nf3 {[%emt 0:00:00]} Nc6 {[%emt 0:00:02]} 3. Bb5 {[%emt 0:00:00]} Nge7 {[%emt 0:00:06]} 4. O-O {[%emt 0:00:03]} Ng6 {[%emt 0:00:07]} 5. c3 {[%emt 0:00:22]} a6 {[%emt 0:00:07]} 6. Ba4 {[%emt 0:00:19]} Be7 {[%emt 0:00:04]} 7. d4 {[%emt 0:00:17]} d6 {[%emt 0:00:04]} 8. d5 {[%emt 0:04:06]} b5 {[%emt 0:00:29]} 9. Bc2 {[%emt 0:00:36]} Na5 {[%emt 0:00:05]} 10. a4 {[%emt 0:00:54]} Bd7 {[%emt 0:00:23]} 11. Na3 {[%emt 0:01:06]} c5 {[%emt 0:00:38]} 12. dxc6 {[%emt 0:01:37]} Nxc6 {[%emt 0:00:09]} 13. Be3 {[%emt 0:01:12]} O-O {[%emt 0:06:14]} 14. axb5 {[%emt 0:09:49]} axb5 {[%emt 0:00:07]} 15. Nxb5 {[%emt 0:00:42]} Rxa1 {[%emt 0:00:07]} 16. Qxa1 {[%emt 0:00:33]} Nb4 {[%emt 0:00:40]} 17. Ba4 {[%emt 0:10:01]} Qb8 {[%emt 0:17:18]} 18. Na7 {[%emt 0:14:26]} Bxa4 {[%emt 0:02:17]} 19. Qxa4 {[%emt 0:01:20]} Nd3 {[%emt 0:00:10]} 20. b4 {[%emt 0:07:04]} f5 {[%emt 0:02:51]} 21. exf5 {[%emt 0:06:22]} Rxf5 {[%emt 0:00:37]} 22. Qd7 {[%emt 0:03:31]} Qf8 {[%emt 0:02:21]} 23. Nc6 {[%emt 0:04:15]} Rxf3 {[%emt 0:15:47]} 24. Nxe7+ {[%emt 0:01:55]} Nxe7 {[%emt 0:00:08]} 25. gxf3 {[%emt 0:00:41]} Ng6 {[%emt 0:00:09]} 26. Qe6+ {[%emt 0:05:11]} Kh8 {[%emt 0:00:09]} 27. Qg4 {[%emt 0:02:36]} Ndf4 {[%emt 0:01:55]} 28. Bxf4 {[%emt 0:03:14]} Nxf4 {[%emt 0:00:07]} 29. Ra1 {[%emt 0:11:26]} h5 {[%emt 0:01:02]} 30. Qd7 {[%emt 0:00:24]} Qf6 {[%emt 0:01:10]} 31. Kf1 {[%emt 0:01:59]} Qg6 {[%emt 0:00:44]} 32. Qa7 {[%emt 0:02:43]} d5 {[%emt 0:12:22]} 33. Ke1 {[%emt 0:07:01]} Qd3 {[%emt 0:00:44]} 34. Qa2 {[%emt 0:00:41]} Ng2# {[%emt 0:00:07]} 0-1

[Event "ESTCC U50 2018"]
[Site "Walbrzych"]
[Date "2018.04.19"]
[Round "6"]
[White "Van Herck, Marcel"]
[Black "Daleczko, Zbigniew"]
[Result "1-0"]
[ECO "A43"]
[WhiteElo "2061"]
[BlackElo "1835"]
[Annotator "NA"]
[PlyCount "97"]
[EventDate "2018.??.??"]
[EventCountry "POL"]
[SourceTitle "playchess.com"]
[Source "ChessBase"]
[SourceQuality "1"]
[WhiteTeam "Belgium"]
[BlackTeam "Poland"]
[WhiteTeamCountry "BEL"]
[BlackTeamCountry "POL"]
[TimeControl "40/5400+30:1800+30"]

1. d4 {[%emt 0:00:11]} Nf6 {[%emt 0:00:16]} 2. Nf3 {[%emt 0:01:32]} c5 {[%emt 0:00:21]} 3. d5 {[%emt 0:00:32]} e6 {[%emt 0:00:09]} 4. Nc3 {[%emt 0:01:53]} Nxd5 {[%emt 0:02:03]} 5. Nxd5 {[%emt 0:00:08]} exd5 {[%emt 0:00:02]} 6. Qxd5 {[%emt 0:00:21]} Nc6 {[%emt 0:00:38]} 7. Bf4 {[%emt 0:32:19] A43: Schmid Benoni} (7. Ng5 Qe7 8. c3 d6 9. Bf4 Be6 10. Qd2 d5 11. e3 h6 12. Nxe6 Qxe6 13. O-O-O O-O-O 14. Bd3 Bd6 {1-0 (53) Kramnik,V (2809)-Hou,Y (2651) Medias 2016}) 7... Qf6 {[%emt 0:07:20]} 8. Qe4+ {[%emt 0:00:17]} Qe6 $146 {[%emt 0:05:31]} ({Predecessor:} 8... Be7 9. O-O-O Qe6 10. Qxe6 fxe6 11. e4 b6 12. Bb5 Bb7 13. Ne5 Nxe5 14. Bxe5 O-O-O {½-½ (33) Afanasiev,D (2057)-Volodin,I (2295) Kazan 2012}) 9. Qxe6+ {[%emt 0:00:18]} fxe6 {[%emt 0:01:05]} 10. e4 {[%emt 0:06:46]} g6 {[%emt 0:02:08]} 11. O-O-O {[%emt 0:00:48]} b6 {[%emt 0:01:18]} 12. Ne5 {[%emt 0:02:41]} Nxe5 {[%emt 0:00:34]} 13. Bxe5 {[%emt 0:00:07]} Bh6+ {[%emt 0:00:19]} 14. Kb1 {[%emt 0:00:28]} Rf8 {[%emt 0:00:34]} 15. f3 {[%emt 0:00:40]} Rf7 {[%emt 0:00:15]} 16. Bc4 {[%emt 0:06:18]} Bb7 {[%emt 0:01:13]} 17. Bd6 {[%emt 0:01:53]} Bf8 {[%emt 0:01:54]} 18. Bxf8 {[%emt 0:06:26]} Rxf8 {[%emt 0:00:43]} 19. Rd6 {[%emt 0:02:00]} Rf7 {[%emt 0:02:50]} 20. Rhd1 {[%emt 0:00:19]} Re7 {[%emt 0:02:13]} 21. a4 {[%emt 0:09:45]} Bc6 {[%emt 0:00:21]} 22. Bb5 {[%emt 0:00:49]} Bxb5 {[%emt 0:01:00]} 23. axb5 {[%emt 0:00:05]} Rc8 {[%emt 0:00:37]} 24. c4 {[%emt 0:00:51]} Rc7 {[%emt 0:00:37]} 25. Kc2 {[%emt 0:00:43]} Rf7 {[%emt 0:03:25]} 26. Ra1 {[%emt 0:01:40]} Ke7 {[%emt 0:03:47]} 27. Rd3 {[%emt 0:00:12]} Kf6 {[%emt 0:01:33]} 28. Kd2 {[%emt 0:02:45]} g5 {[%emt 0:01:55]} 29. Ke3 {[%emt 0:01:07]} h6 {[%emt 0:03:41]} 30. Rad1 {[%emt 0:01:11]} Ke7 {[%emt 0:00:53]} 31. g3 {[%emt 0:00:31]} Rg7 {[%emt 0:03:46]} 32. e5 {[%emt 0:01:32]} Rf7 {[%emt 0:02:18]} 33. Ra1 {[%emt 0:00:49]} Rf5 {[%emt 0:00:32]} 34. Ke4 {[%emt 0:00:42]} h5 {[%emt 0:03:20]} 35. Rda3 {[%emt 0:00:17]} d6 {[%emt 0:00:18]} 36. exd6+ {[%emt 0:05:06]} Kxd6 {[%emt 0:00:04]} 37. Rxa7 {[%emt 0:00:16]} Re5+ {[%emt 0:00:55]} 38. Kd3 {[%emt 0:00:06]} Rxa7 {[%emt 0:03:34]} 39. Rxa7 {[%emt 0:00:08]} Re1 {[%emt 0:00:03]} 40. Rb7 {[%emt 0:00:00]} Ke5 {[%emt 0:01:10]} 41. Rxb6 {[%emt 0:11:41]} Rf1 {[%emt 0:01:57]} 42. Rc6 {[%emt 0:05:05]} Rxf3+ {[%emt 0:00:37]} 43. Kc2 {[%emt 0:03:23]} Kd4 {[%emt 0:01:16]} 44. b6 {[%emt 0:00:33]} Rf8 {[%emt 0:08:09]} 45. b4 {[%emt 0:07:37]} Kxc4 {[%emt 0:04:43]} 46. bxc5 {[%emt 0:00:13]} Rf2+ {[%emt 0:03:04]} 47. Kd1 Rxh2 48. b7 {[%emt 0:01:26]} Rb2 {[%emt 0:01:40]} 49. Rb6 {[%emt 0:00:10]} 1-0

[Event "ESTCC U50 2018"]
[Site "Walbrzych"]
[Date "2018.04.19"]
[Round "6"]
[White "Roth, Martin"]
[Black "Pastor Alonso De Prado, Alberto"]
[Result "0-1"]
[ECO "B00"]
[WhiteElo "2008"]
[BlackElo "2162"]
[Annotator "NA"]
[PlyCount "94"]
[EventDate "2018.??.??"]
[EventCountry "POL"]
[SourceTitle "playchess.com"]
[Source "ChessBase"]
[SourceQuality "1"]
[WhiteTeam "SUI"]
[BlackTeam "ESP"]
[WhiteTeamCountry "GER"]
[BlackTeamCountry "ESP"]
[TimeControl "40/5400+30:1800+30"]

1. e4 {[%emt 0:00:00]} b6 {[%emt 0:00:24]} 2. d4 {[%emt 0:00:15]} Bb7 {[%emt 0:00:06]} 3. Bd3 {[%emt 0:00:18]} Nf6 {[%emt 0:00:06]} 4. Qe2 {[%emt 0:00:20]} Nc6 {[%emt 0:00:06]} 5. Nf3 {[%emt 0:00:58]} Nb4 {[%emt 0:00:08]} 6. Nbd2 $11 {[%emt 0:03:13]} e6 {[%emt 0:00:16]} 7. O-O {[%emt 0:00:50]} Nxd3 {[%emt 0:03:19]} 8. Qxd3 {[%emt 0:00:24]} d5 {[%emt 0:01:40]} 9. exd5 {[%emt 0:00:43]} Qxd5 {[%emt 0:00:43]} 10. c4 {[%emt 0:00:44]} Qh5 {[%emt 0:01:00]} 11. Ne5 {[%emt 0:04:19]} Bd6 {[%emt 0:04:06]} 12. f4 {[%emt 0:00:15]} O-O-O {[%emt 0:00:47]} 13. Ndf3 {[%emt 0:04:02]} Ng4 {[%emt 0:24:27]} 14. h3 {[%emt 0:19:20]} Nxe5 {[%emt 0:02:31]} 15. fxe5 {[%emt 0:06:53]} Bxe5 {[%emt 0:00:22]} 16. Nxe5 {[%emt 0:00:36]} Qxe5 {[%emt 0:02:46]} 17. dxe5 {[%emt 0:06:26]} Rxd3 {[%emt 0:00:05]} 18. Rxf7 {[%emt 0:00:17]} Rd1+ {[%emt 0:00:10]} 19. Kf2 {[%emt 0:07:21]} Rhd8 {[%emt 0:04:45]} 20. b3 {[%emt 0:08:07]} h5 {[%emt 0:05:51]} 21. Ke3 {[%emt 0:14:04]} Re1+ {[%emt 0:00:33]} 22. Kf2 {[%emt 0:00:38]} Rdd1 {[%emt 0:00:26]} 23. Bd2 {[%emt 0:02:20]} Rf1+ {[%emt 0:00:12]} 24. Ke2 {[%emt 0:01:05]} Rxf7 {[%emt 0:01:33]} 25. Kxd1 {[%emt 0:02:14]} Bxg2 {[%emt 0:00:09]} 26. h4 {[%emt 0:00:24]} Rf5 {[%emt 0:09:04]} 27. Ke2 {[%emt 0:03:00]} Rxe5+ {[%emt 0:00:17]} 28. Kf2 {[%emt 0:00:09]} Bc6 {[%emt 0:04:06]} 29. Bg5 {[%emt 0:01:41]} Rf5+ {[%emt 0:00:56]} 30. Ke3 {[%emt 0:00:31]} e5 {[%emt 0:01:00]} 31. Rd1 {[%emt 0:00:17]} Rf3+ {[%emt 0:00:23]} 32. Ke2 {[%emt 0:00:16]} Rh3 {[%emt 0:00:50]} 33. Rd8+ {[%emt 0:00:38]} Kb7 {[%emt 0:00:09]} 34. Rd2 {[%emt 0:06:52]} a5 {[%emt 0:00:27]} 35. Be7 {[%emt 0:00:44]} Be4 {[%emt 0:01:56]} 36. Bf8 {[%emt 0:03:13]} Rxh4 {[%emt 0:04:41]} 37. Bxg7 {[%emt 0:00:08]} Bb1 {[%emt 0:00:11]} 38. a3 {[%emt 0:03:37]} e4 {[%emt 0:05:29]} 39. Be5 {[%emt 0:00:32]} Bd3+ {[%emt 0:00:38]} 40. Ke3 {[%emt 0:00:00]} c5 {[%emt 0:01:33]} 41. Rf2 {[%emt 0:02:31]} Rh3+ {[%emt 0:00:10]} 42. Kf4 {[%emt 0:00:12]} e3 {[%emt 0:00:08]} 43. Rg2 {[%emt 0:00:09]} e2 {[%emt 0:04:13]} 44. Rg7+ {[%emt 0:00:08]} Ka6 {[%emt 0:01:06]} 45. Bb8 {[%emt 0:13:06]} b5 {[%emt 0:00:39]} 46. cxb5+ {[%emt 0:00:32]} Bxb5 {[%emt 0:00:34]} 47. Re7 {[%emt 0:00:14]} Rh1 0-1

[Event "ESTCC U50 2018"]
[Site "Walbrzych"]
[Date "2018.04.19"]
[Round "6"]
[White "Czyz, Andrzej"]
[Black "Sazonova, Elena N"]
[Result "0-1"]
[ECO "A53"]
[WhiteElo "1999"]
[BlackElo "2139"]
[Annotator "NA"]
[PlyCount "145"]
[EventDate "2018.??.??"]
[EventCountry "POL"]
[SourceTitle "playchess.com"]
[Source "ChessBase"]
[SourceQuality "1"]
[WhiteTeam "Poland"]
[BlackTeam "Russia"]
[WhiteTeamCountry "POL"]
[BlackTeamCountry "RUS"]
[TimeControl "40/5400+30:1800+30"]

1. d4 {[%emt 0:00:00]} Nf6 {[%emt 0:00:15]} 2. c4 {[%emt 0:00:02]} d6 {[%emt 0:00:29]} 3. Nc3 {[%emt 0:00:18]} e5 {[%emt 0:00:27]} 4. dxe5 {[%emt 0:02:13]} dxe5 {[%emt 0:00:08]} 5. Qxd8+ {[%emt 0:01:13]} Kxd8 {[%emt 0:00:10]} 6. Bg5 {[%emt 0:01:00]} c6 {[%emt 0:04:14]} 7. Nf3 {[%emt 0:05:42]} Nbd7 {[%emt 0:01:50]} 8. O-O-O {[%emt 0:03:48]} Kc7 {[%emt 0:11:23] LiveBook: 17 Games} 9. a3 {[%emt 0:06:54]} a5 {[%emt 0:06:34]} 10. e3 {[%emt 0:04:28] A53: Old Indian Defence without Nf3} Ne8 {[%emt 0:02:27]} (10... Bd6 11. Be2 a4 12. Bh4 Nc5 13. Kb1 Bf5+ 14. Ka2 Nfd7 15. Bg3 f6 16. Nd2 Rad8 17. e4 Bg6 {0-1 (33) Kaplan,D (2091)-Meduna,E (2428) Czechia 2010}) 11. Bh4 {[%emt 0:02:00]} f6 {[%emt 0:00:21]} 12. Bg3 $146 {[%emt 0:01:10]} ({Predecessor:} 12. Ne4 Nb6 13. Nxe5 g5 14. Bg3 a4 {1-0 (14) Alcon,J-Abril,A Spain 1993}) 12... a4 {[%emt 0:05:59]} 13. h4 {[%emt 0:06:52]} h5 {[%emt 0:04:51]} 14. Be2 {[%emt 0:08:37]} Nc5 {[%emt 0:07:12]} 15. Nd2 {[%emt 0:04:57]} Nd6 {[%emt 0:06:06]} 16. e4 {[%emt 0:03:34]} Ne6 {[%emt 0:12:31]} 17. Kb1 {[%emt 0:10:14]} b6 {[%emt 0:06:04]} 18. Rc1 {[%emt 0:04:38]} Nb7 {[%emt 0:01:20]} 19. Nd5+ {[%emt 0:01:29]} cxd5 {[%emt 0:00:08]} 20. cxd5+ {[%emt 0:00:51]} Nec5 {[%emt 0:00:05]} 21. Rhf1 {[%emt 0:02:34]} Bd6 {[%emt 0:05:32]} 22. Rc3 {[%emt 0:03:35]} Bd7 {[%emt 0:01:05]} 23. f3 {[%emt 0:01:41]} Na5 {[%emt 0:00:57]} 24. Rfc1 {[%emt 0:01:53]} Kb7 {[%emt 0:00:33]} 25. Bd1 {[%emt 0:01:35]} Rhc8 {[%emt 0:00:43]} 26. Bf2 {[%emt 0:02:36]} Rc7 {[%emt 0:00:23]} 27. g4 {[%emt 0:03:31]} hxg4 {[%emt 0:01:23]} 28. fxg4 {[%emt 0:00:02]} Rac8 {[%emt 0:01:00]} 29. Be3 {[%emt 0:01:45]} Nd3 {[%emt 0:01:53]} 30. Rxc7+ {[%emt 0:02:19]} Rxc7 {[%emt 0:00:07]} 31. Rxc7+ {[%emt 0:00:20]} Kxc7 {[%emt 0:00:05]} 32. Kc2 {[%emt 0:00:23]} Nf4 {[%emt 0:00:49]} 33. Kc3 {[%emt 0:01:06]} Bb5 {[%emt 0:03:53]} 34. g5 {[%emt 0:01:19]} fxg5 {[%emt 0:02:33]} 35. hxg5 {[%emt 0:00:10]} Ne2+ {[%emt 0:02:31]} 36. Kc2 {[%emt 0:01:38]} Nc4 {[%emt 0:03:18]} 37. Nxc4 {[%emt 0:00:49]} Bxc4 {[%emt 0:00:05]} 38. Kd2 {[%emt 0:00:23]} Ng3 {[%emt 0:00:34]} 39. Kc3 {[%emt 0:00:56]} Be2 {[%emt 0:01:35]} 40. Bxa4 {[%emt 0:00:00]} Nxe4+ {[%emt 0:00:17]} 41. Kc2 {[%emt 0:01:35]} b5 {[%emt 0:01:33]} 42. Bb3 {[%emt 0:00:26]} Be7 {[%emt 0:01:11]} 43. d6+ {[%emt 0:01:04]} Kxd6 {[%emt 0:01:12]} 44. g6 {[%emt 0:00:08]} Bg5 {[%emt 0:02:25]} 45. Ba7 {[%emt 0:00:21]} Bc4 {[%emt 0:00:27]} 46. Bxc4 {[%emt 0:01:49]} bxc4 {[%emt 0:00:07]} 47. b4 {[%emt 0:00:22]} cxb3+ {[%emt 0:00:33]} 48. Kxb3 {[%emt 0:00:02]} Kc6 {[%emt 0:00:21]} 49. Bb8 {[%emt 0:00:34]} Nd6 {[%emt 0:00:10]} 50. a4 {[%emt 0:00:35]} Be3 {[%emt 0:01:00]} 51. a5 {[%emt 0:00:33]} Bc5 {[%emt 0:00:15]} 52. a6 {[%emt 0:00:19]} e4 {[%emt 0:01:23]} 53. a7 {[%emt 0:00:03]} Kb7 {[%emt 0:00:10]} 54. Kc3 {[%emt 0:01:14]} Nf5 {[%emt 0:00:43]} 55. Kc4 {[%emt 0:01:59]} Bxa7 {[%emt 0:00:18]} 56. Be5 {[%emt 0:00:26]} Kc6 {[%emt 0:00:15]} 57. Bf4 {[%emt 0:01:31]} Bc5 {[%emt 0:00:26]} 58. Be5 {[%emt 0:01:33]} Be3 $19 {[%emt 0:01:47]} 59. Bb2 {[%emt 0:02:29]} Nd6+ {[%emt 0:01:09]} 60. Kc3 {[%emt 0:00:14]} Kd5 {[%emt 0:00:20]} 61. Kc2 {[%emt 0:00:09]} Nf5 {[%emt 0:00:21]} 62. Kd1 {[%emt 0:00:34]} Bd4 {[%emt 0:00:10]} 63. Bc1 {[%emt 0:00:58]} Nh4 {[%emt 0:00:22]} 64. Ke2 {[%emt 0:00:31]} Nxg6 {[%emt 0:00:08]} 65. Bg5 {[%emt 0:00:15]} Bf6 {[%emt 0:00:30]} 66. Bc1 {[%emt 0:00:12]} Ne7 {[%emt 0:01:10]} 67. Ba3 {[%emt 0:00:25]} Nf5 {[%emt 0:00:11]} 68. Bc1 {[%emt 0:00:19]} g5 {[%emt 0:00:34]} 69. Kf2 {[%emt 0:00:37]} g4 {[%emt 0:00:18]} 70. Bf4 {[%emt 0:00:13]} Bd4+ {[%emt 0:00:25]} 71. Kg2 {[%emt 0:00:56]} e3 {[%emt 0:00:19]} 72. Kf1 {[%emt 0:01:02]} Ke4 {[%emt 0:00:08]} 73. Bc7 {[%emt 0:00:35] Ke5} 0-1

[Event "ESTCC U50 2018"]
[Site "Walbrzych"]
[Date "2018.04.19"]
[Round "6"]
[White "Ciuro Munoz, Ricardo"]
[Black "Sidler, Samuel"]
[Result "1-0"]
[ECO "B40"]
[WhiteElo "1972"]
[BlackElo "1833"]
[Annotator "NA"]
[PlyCount "85"]
[EventDate "2018.??.??"]
[EventCountry "POL"]
[SourceTitle "playchess.com"]
[Source "ChessBase"]
[SourceQuality "1"]
[WhiteTeam "Spain"]
[BlackTeam "Switzerland"]
[WhiteTeamCountry "ESP"]
[BlackTeamCountry "SUI"]
[TimeControl "40/5400+30:1800+30"]

1. e4 {[%emt 0:00:00]} c5 {[%emt 0:00:22]} 2. Nf3 {[%emt 0:00:00]} e6 {[%emt 0:00:53]} 3. d3 {[%emt 0:00:04]} Nc6 {[%emt 0:00:40]} 4. g3 {[%emt 0:00:11]} b6 {[%emt 0:00:09]} 5. Bg2 {[%emt 0:00:09]} Bb7 {[%emt 0:00:39]} 6. O-O {[%emt 0:00:13]} Qc7 {[%emt 0:00:26]} 7. Re1 {[%emt 0:00:35]} d6 {[%emt 0:00:17]} 8. c3 {[%emt 0:00:49]} Nf6 {[%emt 0:00:27]} 9. Na3 {[%emt 0:02:00]} a6 {[%emt 0:00:31]} 10. Bg5 {[%emt 0:02:06]} Be7 {[%emt 0:00:57]} 11. Rc1 {[%emt 0:00:11]} Rd8 {[%emt 0:02:42]} 12. Qe2 {[%emt 0:07:32]} h6 {[%emt 0:01:27]} 13. Bf4 {[%emt 0:00:54]} e5 {[%emt 0:01:37]} 14. Bd2 {[%emt 0:00:21]} O-O {[%emt 0:00:23]} 15. Nc4 {[%emt 0:01:16]} Rfe8 {[%emt 0:07:11]} 16. Ne3 {[%emt 0:03:39]} d5 {[%emt 0:03:51]} 17. Nf5 {[%emt 0:03:19]} Bf8 {[%emt 0:01:29]} 18. h3 {[%emt 0:02:14]} dxe4 {[%emt 0:02:32]} 19. dxe4 {[%emt 0:00:25]} g6 {[%emt 0:01:09]} 20. Nxh6+ {[%emt 0:00:18]} Kh7 {[%emt 0:00:53]} 21. Ng4 {[%emt 0:00:52]} Nxg4 {[%emt 0:00:32]} 22. hxg4 {[%emt 0:00:21]} Bc8 {[%emt 0:03:54]} 23. Be3 {[%emt 0:08:49]} Be7 {[%emt 0:03:13]} 24. Ng5+ {[%emt 0:06:35]} Kg7 {[%emt 0:01:56]} 25. Bf3 {[%emt 0:08:58]} Rh8 {[%emt 0:05:43]} 26. Kg2 {[%emt 0:05:33]} f6 {[%emt 0:00:33]} 27. Nh3 {[%emt 0:02:14]} g5 {[%emt 0:01:40]} 28. Rcd1 {[%emt 0:03:41]} Bd6 {[%emt 0:03:46]} 29. Ng1 {[%emt 0:02:14]} Kg6 {[%emt 0:05:10]} 30. Rd2 {[%emt 0:02:24]} Rd7 {[%emt 0:06:23]} 31. Red1 {[%emt 0:00:36]} Nd8 {[%emt 0:01:27]} 32. Qc4 {[%emt 0:04:32]} b5 {[%emt 0:03:10]} 33. Qb3 {[%emt 0:03:37]} Nb7 {[%emt 0:01:33]} 34. Qc2 {[%emt 0:01:51]} Rdh7 {[%emt 0:03:26]} 35. a4 {[%emt 0:02:54]} Qe7 {[%emt 0:03:01]} 36. axb5 {[%emt 0:00:56]} axb5 {[%emt 0:00:08]} 37. Qd3 {[%emt 0:00:27]} Bd7 {[%emt 0:01:33]} 38. Qd5 {[%emt 0:02:58]} Be6 {[%emt 0:00:26]} 39. Qc6 {[%emt 0:00:26]} Bc4 {[%emt 0:00:54]} 40. Be2 {[%emt 0:00:00]} Qe6 {[%emt 0:07:49]} 41. Bxc4 {[%emt 0:07:34]} Rh2+ {[%emt 0:12:46]} 42. Kf3 {[%emt 0:00:57]} Qxc4 {[%emt 0:04:16]} 43. Qxb7 {[%emt 0:00:37]} 1-0

[Event "ESTCC U50 2018"]
[Site "Walbrzych"]
[Date "2018.04.19"]
[Round "6"]
[White "Szmyd, Marek"]
[Black "Deleyn, Gunter"]
[Result "1/2-1/2"]
[ECO "A01"]
[WhiteElo "1898"]
[BlackElo "2200"]
[Annotator "NA"]
[PlyCount "39"]
[EventDate "2018.??.??"]
[EventCountry "POL"]
[SourceTitle "playchess.com"]
[Source "ChessBase"]
[SourceQuality "1"]
[WhiteTeam "Poland"]
[BlackTeam "Belgium"]
[WhiteTeamCountry "POL"]
[BlackTeamCountry "BEL"]
[TimeControl "40/5400+30:1800+30"]

1. b3 {[%emt 0:00:00]} e5 {[%emt 0:00:34]} 2. Bb2 {[%emt 0:00:00]} Nc6 {[%emt 0:00:09]} 3. e3 {[%emt 0:00:00]} Nf6 {[%emt 0:00:19]} 4. Nf3 {[%emt 0:01:03]} d6 {[%emt 0:00:14]} 5. d4 {[%emt 0:01:10] LiveBook: 34 Games} exd4 {[%emt 0:01:47]} 6. Nxd4 {[%emt 0:00:23]} Be7 7. Nxc6 bxc6 {[%emt 0:02:19]} 8. Be2 {[%emt 0:00:37]} O-O {[%emt 0:01:13]} 9. O-O {[%emt 0:03:04]} d5 {[%emt 0:02:39]} 10. c4 {[%emt 0:10:27]} Bf5 {[%emt 0:14:39]} 11. Nc3 {[%emt 0:07:56]} Qd7 {[%emt 0:00:48]} 12. cxd5 $14 {[%emt 0:04:41]} cxd5 {[%emt 0:00:10]} 13. Bf3 {[%emt 0:00:39]} Rfd8 {[%emt 0:08:49]} 14. Nxd5 {[%emt 0:06:16]} Nxd5 {[%emt 0:00:51]} 15. e4 {[%emt 0:02:54]} Be6 {[%emt 0:03:32]} 16. exd5 {[%emt 0:01:40]} Bxd5 {[%emt 0:00:05]} 17. Bxd5 {[%emt 0:00:53]} Qxd5 {[%emt 0:00:18]} 18. Qg4 {[%emt 0:01:42]} Qg5 {[%emt 0:00:22]} 19. Qxg5 {[%emt 0:00:20]} Bxg5 {[%emt 0:00:06]} 20. Rfd1 {[%emt 0:00:39]} 1/2-1/2